[Event "22nd ECCC Women 2017"]
[Site "Antalya"]
[Date "2017.10.16"]
[Round "7"]
[White "Yildiz, Betul Cemre"]
[Black "Ayan, Bengu Sena"]
[Result "1/2-1/2"]
[ECO "C06"]
[WhiteElo "2350"]
[BlackElo "1888"]
[Annotator "ChessBase"]
[PlyCount "100"]
[EventType "team-tourn"]
[EventCountry "TUR"]
[SourceTitle "playchess.com"]
[Source "ChessBase"]
[SourceQuality "1"]
[WhiteTeam "Anatolia"]
[BlackTeam "Aegean"]
[TimeControl "40/5400+30:1800+30"]

1. e4 {[%emt 0:00:30]} e6 {[%emt 0:01:00]} 2. d4 {[%emt 0:00:30]} d5 {[%emt 0:00:30]} 3. Nd2 {[%emt 0:00:00]} Nf6 {[%emt 0:00:00]} 4. e5 {[%emt 0:00:00]} Nfd7 {[%emt 0:00:00]} 5. Bd3 {[%emt 0:00:00]} c5 {[%emt 0:00:00]} 6. c3 {[%emt 0:00:00]} Nc6 {[%emt 0:00:00]} 7. Ne2 {[%emt 0:00:00]} cxd4 {[%emt 0:00:30]} 8. cxd4 {[%emt 0:00:00]} f6 {[%emt 0:00:30]} 9. exf6 {[%emt 0:00:30]} Qxf6 {[%emt 0:00:30]} 10. Nf3 {[%emt 0:00:30]} Bb4+ {[%emt 0:00:30]} 11. Bd2 {[%emt 0:00:30]} Bxd2+ {[%emt 0:00:00]} 12. Qxd2 {[%emt 0:05:30]} O-O {[%emt 0:00:00]} 13. O-O {[%emt 0:18:30]} e5 {[%emt 0:00:00]} 14. dxe5 {[%emt 0:00:30]} Ndxe5 {[%emt 0:00:00]} 15. Nxe5 {[%emt 0:00:30]} Nxe5 {[%emt 0:00:30]} 16. Nd4 {[%emt 0:04:30]} Nxd3 {[%emt 0:22:30]} 17. Qxd3 {[%emt 0:00:30]} Bf5 {[%emt 0:00:00]} 18. Nxf5 {[%emt 0:15:30]} Qxf5 {[%emt 0:00:00]} 19. Rad1 {[%emt 0:00:00]} Rad8 {[%emt 0:02:30]} 20. Qxf5 {[%emt 0:13:00]} Rxf5 {[%emt 0:00:00]} 21. Rd4 {[%emt 0:00:00]} Rf6 {[%emt 0:03:00]} 22. Rfd1 {[%emt 0:01:00]} Rfd6 {[%emt 0:00:30]} 23. Kf1 {[%emt 0:00:30]} Kf7 {[%emt 0:03:30]} 24. R1d3 {[%emt 0:00:00]} Rb6 {[%emt 0:05:30]} 25. b3 {[%emt 0:01:00]} Ke6 {[%emt 0:04:30]} 26. Rh4 {[%emt 0:00:30]} h6 {[%emt 0:00:30]} 27. Rg3 {[%emt 0:00:30]} Kf7 {[%emt 0:04:30]} 28. Ra4 {[%emt 0:04:30]} a6 {[%emt 0:03:30]} 29. Rag4 {[%emt 0:00:30]} g6 {[%emt 0:01:30]} 30. Rf3+ {[%emt 0:01:30]} Rf6 {[%emt 0:02:30]} 31. Rb4 {[%emt 0:00:00]} b5 {[%emt 0:01:30]} 32. Rbf4 {[%emt 0:09:00]} Rxf4 {[%emt 0:01:30]} 33. Rxf4+ {[%emt 0:00:30]} Ke6 {[%emt 0:00:30]} 34. Ke2 {[%emt 0:00:30]} Rc8 {[%emt 0:00:30]} 35. Kd2 {[%emt 0:00:30]} g5 {[%emt 0:10:30]} 36. Rf3 {[%emt 0:00:30]} b4 {[%emt 0:08:30]} 37. Rh3 {[%emt 0:03:30]} Rh8 {[%emt 0:00:30]} 38. Kd3 {[%emt 0:03:30]} Ke5 {[%emt 0:03:30]} 39. Re3+ {[%emt 0:01:13]} Kd6 {[%emt 0:00:30]} 40. Rf3 {[%emt 0:00:00]} Ke5 {[%emt 0:05:30]} 41. Rf7 {[%emt 0:03:17]} Rc8 {[%emt 0:02:30]} 42. Re7+ {[%emt 0:02:30]} Kf5 {[%emt 0:03:30]} 43. Rb7 {[%emt 0:10:30]} Rc3+ {[%emt 0:02:30]} 44. Kd2 {[%emt 0:00:30]} a5 {[%emt 0:01:30]} 45. Rb5 {[%emt 0:14:30]} Ke4 {[%emt 0:00:30]} 46. Rxa5 {[%emt 0:05:36]} Rd3+ {[%emt 0:00:30]} 47. Ke2 {[%emt 0:01:47]} Rc3 {[%emt 0:00:30]} 48. Kd2 {[%emt 0:07:03]} Rd3+ {[%emt 0:00:00]} 49. Kc2 {[%emt 0:04:50]} Rc3+ {[%emt 0:01:00]} 50. Kd2 {[%emt 0:01:04]} Ke5 {[%emt 0:00:30]} 1/2-1/2

[Event "22nd ECCC Women 2017"]
[Site "Antalya"]
[Date "2017.10.16"]
[Round "7"]
[White "Zaiatz, Elena"]
[Black "Choisy, Mathilde"]
[Result "1-0"]
[ECO "E74"]
[WhiteElo "2334"]
[BlackElo "2162"]
[Annotator "ChessBase"]
[PlyCount "113"]
[EventType "team-tourn"]
[EventCountry "TUR"]
[SourceTitle "playchess.com"]
[Source "ChessBase"]
[SourceQuality "1"]
[WhiteTeam "Bossa Nova"]
[BlackTeam "Mulhouse Philidor"]
[TimeControl "40/5400+30:1800+30"]

1. d4 {[%emt 0:00:30]} Nf6 {[%emt 0:01:00]} 2. c4 {[%emt 0:00:30]} g6 {[%emt 0:00:30]} 3. Nc3 {[%emt 0:00:30]} Bg7 {[%emt 0:00:30]} 4. e4 {[%emt 0:00:30]} d6 {[%emt 0:00:30]} 5. Be2 {[%emt 0:00:00]} O-O {[%emt 0:00:00]} 6. Bg5 {[%emt 0:00:00]} c5 {[%emt 0:02:00]} 7. dxc5 {[%emt 0:00:00]} Qa5 {[%emt 0:00:30]} 8. Bd2 {[%emt 0:00:00]} Qxc5 {[%emt 0:00:30]} 9. Nf3 {[%emt 0:00:00]} Bg4 {[%emt 0:00:30]} 10. Be3 {[%emt 0:00:00]} Qa5 {[%emt 0:00:00]} 11. O-O {[%emt 0:00:00]} Nc6 {[%emt 0:00:00]} 12. a3 {[%emt 0:00:00]} Rfc8 {[%emt 0:00:30]} 13. Nd2 {[%emt 0:00:30]} Bxe2 {[%emt 0:02:30]} 14. Qxe2 {[%emt 0:02:30]} Qh5 {[%emt 0:12:30]} 15. f3 {[%emt 0:02:30]} Bh6 {[%emt 0:10:30]} 16. Bxh6 {[%emt 0:25:30]} Qxh6 {[%emt 0:00:30]} 17. Nd5 {[%emt 0:00:30]} Qg7 {[%emt 0:14:30]} 18. Qe3 {[%emt 0:09:30]} Nxd5 {[%emt 0:13:30]} 19. exd5 {[%emt 0:00:00]} Qd4 {[%emt 0:02:30]} 20. Qxd4 {[%emt 0:04:00]} Nxd4 {[%emt 0:00:00]} 21. Rae1 {[%emt 0:00:30]} Rc7 {[%emt 0:05:00]} 22. g4 {[%emt 0:05:30]} Rb8 {[%emt 0:10:30]} 23. Re4 {[%emt 0:05:30]} e5 {[%emt 0:00:30]} 24. dxe6 {[%emt 0:00:00]} Nxe6 {[%emt 0:00:30]} 25. f4 {[%emt 0:00:00]} b5 {[%emt 0:06:15]} 26. f5 {[%emt 0:00:00]} Nc5 {[%emt 0:03:05]} 27. Re2 {[%emt 0:08:00]} bxc4 {[%emt 0:04:09]} 28. Nxc4 {[%emt 0:00:30]} d5 {[%emt 0:02:12]} 29. Ne3 {[%emt 0:11:30]} Rd7 {[%emt 0:03:47]} 30. b4 {[%emt 0:00:30]} Na4 {[%emt 0:03:15]} 31. Rd2 {[%emt 0:05:30]} Rbd8 {[%emt 0:01:37]} 32. g5 {[%emt 0:01:30]} Nc3 {[%emt 0:00:45]} 33. Ng4 {[%emt 0:00:30]} Ne4 {[%emt 0:00:38]} 34. Rd4 {[%emt 0:00:30]} Rc7 {[%emt 0:01:30]} 35. Ne3 {[%emt 0:05:09]} Nc3 {[%emt 0:00:41]} 36. Kg2 {[%emt 0:01:16]} Ne4 {[%emt 0:00:27]} 37. Nxd5 {[%emt 0:02:18]} Rc2+ {[%emt 0:00:31]} 38. Kg1 {[%emt 0:00:10]} Kf8 {[%emt 0:00:35]} 39. Rxe4 {[%emt 0:01:45]} Rxd5 {[%emt 0:00:30]} 40. Ref4 {[%emt 0:00:00]} Rdd2 {[%emt 0:01:03]} 41. R4f2 {[%emt 0:01:52]} Rxf2 {[%emt 0:07:30]} 42. Rxf2 {[%emt 0:00:30]} Rc3 {[%emt 0:02:30]} 43. f6 {[%emt 0:05:30]} Rxa3 {[%emt 0:00:30]} 44. Rc2 {[%emt 0:00:30]} Ke8 {[%emt 0:00:30]} 45. Re2+ {[%emt 0:00:30]} Kf8 {[%emt 0:00:30]} 46. Re7 {[%emt 0:00:00]} Ra4 {[%emt 0:02:30]} 47. Rb7 {[%emt 0:00:00]} Ke8 {[%emt 0:00:06]} 48. Kf2 {[%emt 0:00:30]} a5 {[%emt 0:14:20]} 49. Re7+ {[%emt 0:11:30]} Kd8 {[%emt 0:00:39]} 50. Rxf7 {[%emt 0:12:11]} Rxb4 {[%emt 0:05:33]} 51. Rxh7 {[%emt 0:00:12]} Rg4 {[%emt 0:00:00]} 52. h4 {[%emt 0:00:38]} Ke8 {[%emt 0:00:33]} 53. Kf3 {[%emt 0:01:07]} Rb4 {[%emt 0:00:13]} 54. h5 {[%emt 0:00:14]} Rb3+ {[%emt 0:00:42]} 55. Ke4 {[%emt 0:01:20]} Rb4+ {[%emt 0:00:04]} 56. Kd3 {[%emt 0:00:00]} gxh5 {[%emt 0:01:12]} 57. g6 {[%emt 0:00:00]} 1-0

[Event "22nd ECCC Women 2017"]
[Site "Antalya"]
[Date "2017.10.14"]
[Round "7"]
[White "Mamedjarova, Zeinab"]
[Black "Okuyaz, Duru"]
[Result "1/2-1/2"]
[ECO "A06"]
[WhiteElo "2298"]
[BlackElo "2233"]
[Annotator "NA"]
[PlyCount "81"]
[EventType "team-tourn"]
[EventCountry "TUR"]
[SourceTitle "playchess.com"]
[Source "ChessBase"]
[SourceQuality "1"]
[WhiteTeam "Odlar Yurdu"]
[BlackTeam "Marmara"]
[TimeControl "40/5400+30:1800+30"]

1. d4 {[%emt 0:00:30]} d5 {[%emt 0:01:00]} 2. Nf3 {[%emt 0:00:30]} Nf6 {[%emt 0:00:00]} 3. e3 {[%emt 0:00:00]} c6 {[%emt 0:00:00]} 4. b3 {[%emt 0:04:00]} Bg4 {[%emt 0:02:30]} 5. Be2 {[%emt 0:00:30]} Nbd7 {[%emt 0:00:00]} 6. Bb2 {[%emt 0:02:30]} e6 {[%emt 0:00:00]} 7. O-O {[%emt 0:01:30]} Bd6 {[%emt 0:00:30]} 8. Nbd2 {[%emt 0:07:30]} O-O {[%emt 0:01:30]} 9. Ne5 {[%emt 0:11:30]} Bxe2 {[%emt 0:02:30]} 10. Qxe2 {[%emt 0:00:30]} Ne4 {[%emt 0:14:30]} 11. Nxe4 {[%emt 0:09:30]} dxe4 {[%emt 0:01:30]} 12. Nc4 {[%emt 0:10:30]} Bc7 {[%emt 0:19:30]} 13. Ba3 {[%emt 0:04:30]} Re8 {[%emt 0:00:30]} 14. f3 {[%emt 0:08:30]} Nf6 {[%emt 0:11:30]} 15. f4 {[%emt 0:09:30]} Nd5 {[%emt 0:04:30]} 16. Kh1 {[%emt 0:05:30]} b5 {[%emt 0:08:30]} 17. Nd2 {[%emt 0:01:30]} b4 {[%emt 0:00:30]} 18. Bb2 {[%emt 0:00:30]} f5 {[%emt 0:00:30]} 19. a3 {[%emt 0:04:13]} a5 {[%emt 0:01:30]} 20. Rg1 {[%emt 0:01:24]} Qh4 {[%emt 0:03:30]} 21. g4 {[%emt 0:02:02]} Nf6 {[%emt 0:01:30]} 22. gxf5 {[%emt 0:04:06]} exf5 {[%emt 0:01:30]} 23. Qc4+ {[%emt 0:08:17]} Kh8 {[%emt 0:05:09]} 24. Qf7 {[%emt 0:00:02]} Ng4 {[%emt 0:03:08]} 25. Nf1 {[%emt 0:01:50]} Nf2+ {[%emt 0:10:43]} 26. Kg2 {[%emt 0:00:01]} Bxf4 {[%emt 0:00:13]} 27. exf4 {[%emt 0:01:45]} Qg4+ {[%emt 0:02:43]} 28. Kxf2 {[%emt 0:00:58]} e3+ {[%emt 0:00:04]} 29. Nxe3 {[%emt 0:00:16]} Qxf4+ {[%emt 0:00:11]} 30. Kg2 {[%emt 0:00:00]} Qe4+ {[%emt 0:03:30]} 31. Kh3 {[%emt 0:01:04]} Qxe3+ {[%emt 0:00:21]} 32. Kg2 {[%emt 0:00:27]} Qe4+ {[%emt 0:01:28]} 33. Kh3 {[%emt 0:00:13]} Qe3+ {[%emt 0:00:07]} 34. Kg2 {[%emt 0:00:01]} Re4 {[%emt 0:00:56]} 35. Qxf5 {[%emt 0:00:37]} Rf4 {[%emt 0:01:09]} 36. Qd3 {[%emt 0:00:37]} Rf2+ {[%emt 0:00:17]} 37. Kh1 {[%emt 0:00:00]} Qxd3 {[%emt 0:01:06]} 38. cxd3 {[%emt 0:00:06]} Rxb2 {[%emt 0:00:00]} 39. axb4 {[%emt 0:00:00]} Rxb3 {[%emt 0:00:36]} 40. bxa5 {[%emt 0:00:00]} Rb5 {[%emt 0:01:19]} 41. Rgc1 {[%emt 0:07:31]} 1/2-1/2

[Event "22nd ECCC Women 2017"]
[Site "Antalya"]
[Date "2017.10.14"]
[Round "7"]
[White "Haussernot, Cecile"]
[Black "Badelka, Olga"]
[Result "0-1"]
[ECO "B40"]
[WhiteElo "2169"]
[BlackElo "2353"]
[Annotator "NA"]
[PlyCount "92"]
[EventType "team-tourn"]
[EventCountry "TUR"]
[SourceTitle "playchess.com"]
[Source "ChessBase"]
[SourceQuality "1"]
[WhiteTeam "Mulhouse Philidor"]
[BlackTeam "Bossa Nova"]
[TimeControl "40/5400+30:1800+30"]

1. e4 {[%emt 0:00:30]} c5 {[%emt 0:01:00]} 2. Nf3 {[%emt 0:00:30]} e6 {[%emt 0:00:30]} 3. d4 {[%emt 0:00:30]} cxd4 {[%emt 0:00:30]} 4. Nxd4 {[%emt 0:00:30]} Nf6 {[%emt 0:00:00]} 5. Bd3 $11 {[%emt 0:00:00] LiveBook: 675 Partien} Nc6 {[%emt 0:00:00]} 6. Nxc6 {[%emt 0:00:00]} bxc6 {[%emt 0:00:30]} 7. O-O {[%emt 0:00:30]} d5 {[%emt 0:00:00]} 8. Nc3 {[%emt 0:00:30]} Be7 {[%emt 0:01:00]} 9. Re1 {[%emt 0:04:30]} O-O {[%emt 0:06:30]} 10. e5 {[%emt 0:02:30]} Nd7 {[%emt 0:00:30]} 11. Bf4 {[%emt 0:03:30]} g6 {[%emt 0:02:30]} 12. Qd2 {[%emt 0:06:30]} Rb8 {[%emt 0:06:30]} 13. Nd1 {[%emt 0:01:30]} Nc5 {[%emt 0:02:30]} 14. Re3 {[%emt 0:00:30]} Nxd3 {[%emt 0:12:30]} 15. cxd3 {[%emt 0:11:30]} c5 {[%emt 0:01:30]} 16. Rh3 {[%emt 0:00:30]} Rb4 {[%emt 0:02:30]} 17. a3 {[%emt 0:01:30]} Rb7 {[%emt 0:01:30]} 18. Bh6 {[%emt 0:07:30]} Re8 {[%emt 0:00:30]} 19. Bg7 {[%emt 0:03:30]} Bg5 {[%emt 0:00:30]} 20. f4 {[%emt 0:00:30]} Be7 {[%emt 0:03:30]} 21. Bh6 {[%emt 0:08:30]} f5 {[%emt 0:00:30]} 22. Rg3 {[%emt 0:07:30]} d4 {[%emt 0:04:30]} 23. Bg5 {[%emt 0:04:30]} Bxg5 {[%emt 0:00:30]} 24. Rxg5 {[%emt 0:01:30]} Qd5 {[%emt 0:02:30]} 25. h4 {[%emt 0:00:30]} Rg7 {[%emt 0:00:30]} 26. Rc1 {[%emt 0:01:30]} Bb7 {[%emt 0:01:30]} 27. Qa5 {[%emt 0:05:30]} Rc8 {[%emt 0:09:30]} 28. Qxa7 {[%emt 0:01:30]} h6 {[%emt 0:01:30]} 29. Rg3 {[%emt 0:00:30]} g5 {[%emt 0:00:30]} 30. hxg5 {[%emt 0:07:17]} hxg5 {[%emt 0:00:30]} 31. Rc2 {[%emt 0:02:58]} gxf4 {[%emt 0:09:30]} 32. Rxg7+ {[%emt 0:00:36]} Kxg7 {[%emt 0:00:00]} 33. Qb6 {[%emt 0:03:26]} Kh6 {[%emt 0:07:00]} 34. Kf1 {[%emt 0:02:44]} Rg8 {[%emt 0:08:10]} 35. Ke1 {[%emt 0:00:23]} f3 {[%emt 0:05:01]} 36. gxf3 {[%emt 0:02:54]} Rg1+ {[%emt 0:00:30]} 37. Kd2 {[%emt 0:00:00]} Qxe5 {[%emt 0:00:00]} 38. Kc1 {[%emt 0:00:49]} Bxf3 {[%emt 0:00:42]} 39. Rd2 {[%emt 0:00:06]} Bxd1 {[%emt 0:00:37]} 40. Rxd1 {[%emt 0:00:30]} Qe3+ {[%emt 0:30:30]} 41. Kc2 {[%emt 0:00:17]} Rxd1 {[%emt 0:00:00]} 42. Kxd1 {[%emt 0:00:00]} Qxd3+ {[%emt 0:00:00]} 43. Kc1 {[%emt 0:00:00]} Qe3+ {[%emt 0:00:00]} 44. Kb1 {[%emt 0:00:30]} d3 {[%emt 0:00:00]} 45. Qd8 {[%emt 0:00:00]} Qe1+ {[%emt 0:00:00]} 46. Ka2 {[%emt 0:00:00]} d2 {[%emt 0:00:00]} 0-1

[Event "22nd ECCC Women 2017"]
[Site "Antalya"]
[Date "2017.10.14"]
[Round "7"]
[White "Caglar, Sila"]
[Black "Fataliyeva, Ulviyya"]
[Result "1/2-1/2"]
[ECO "C05"]
[WhiteElo "2153"]
[BlackElo "2348"]
[Annotator "NA"]
[PlyCount "86"]
[EventType "team-tourn"]
[EventCountry "TUR"]
[SourceTitle "playchess.com"]
[Source "ChessBase"]
[SourceQuality "1"]
[WhiteTeam "Marmara"]
[BlackTeam "Odlar Yurdu"]
[TimeControl "40/5400+30:1800+30"]

1. e4 {[%emt 0:00:30]} e6 {[%emt 0:01:00]} 2. d4 {[%emt 0:00:30]} d5 {[%emt 0:00:30]} 3. Nd2 {[%emt 0:00:30]} Nf6 {[%emt 0:00:00]} 4. Bd3 {[%emt 0:00:00]} c5 {[%emt 0:00:00]} 5. c3 $11 {[%emt 0:00:00] LiveBook: 110 Games} (5. e5 $5 {[%cal Re5f6]} Nfd7 6. c3 $11) 5... cxd4 {[%emt 0:00:00]} 6. cxd4 {[%emt 0:00:00]} dxe4 {[%emt 0:00:00]} 7. Nxe4 {[%emt 0:00:00]} Bd7 {[%emt 0:00:00]} 8. Nf3 {[%emt 0:09:30]} Nxe4 {[%emt 0:00:00]} 9. Bxe4 {[%emt 0:00:00]} Bc6 {[%emt 0:00:00]} 10. Bxc6+ {[%emt 0:03:00]} Nxc6 {[%emt 0:00:00]} 11. O-O {[%emt 0:00:30]} Be7 {[%emt 0:00:00]} 12. Qb3 {[%emt 0:00:30]} Qb6 {[%emt 0:00:00]} 13. Qc4 {[%emt 0:06:30]} Qb4 {[%emt 0:07:30]} 14. b3 {[%emt 0:08:30]} Rd8 {[%emt 0:03:30]} 15. Bb2 {[%emt 0:04:30]} O-O {[%emt 0:04:30]} 16. Rfd1 {[%emt 0:03:30]} Qxc4 {[%emt 0:07:30]} 17. bxc4 {[%emt 0:00:00]} Na5 {[%emt 0:00:00]} 18. Rac1 {[%emt 0:05:00]} Rc8 {[%emt 0:00:00]} 19. c5 {[%emt 0:02:30]} Rfd8 {[%emt 0:05:30]} 20. Ne5 {[%emt 0:08:30]} Nc6 {[%emt 0:01:30]} 21. Nc4 {[%emt 0:14:30]} Rd7 {[%emt 0:06:30]} 22. Bc3 {[%emt 0:10:30]} Rcd8 {[%emt 0:12:30]} 23. Ba5 {[%emt 0:03:13]} Rb8 {[%emt 0:01:30]} 24. Bc3 {[%emt 0:01:42]} g6 {[%emt 0:00:30]} 25. g3 {[%emt 0:00:57]} h5 {[%emt 0:00:30]} 26. Rb1 {[%emt 0:01:10]} Bf8 {[%emt 0:02:30]} 27. Na5 {[%emt 0:09:22]} Nxa5 {[%emt 0:02:30]} 28. Bxa5 {[%emt 0:00:30]} Rc8 {[%emt 0:00:00]} 29. Rd2 {[%emt 0:02:31]} Bg7 {[%emt 0:02:00]} 30. Bc3 {[%emt 0:01:23]} Rc6 {[%emt 0:12:30]} 31. Rdb2 {[%emt 0:02:29]} b6 {[%emt 0:00:30]} 32. cxb6 {[%emt 0:00:33]} axb6 {[%emt 0:00:30]} 33. Rb3 {[%emt 0:00:28]} Ra7 {[%emt 0:03:30]} 34. a3 {[%emt 0:00:55]} Ra6 {[%emt 0:01:30]} 35. Kg2 {[%emt 0:00:46]} Rd6 {[%emt 0:01:30]} 36. Rd1 {[%emt 0:00:57]} Ra4 {[%emt 0:00:30]} 37. Bb2 {[%emt 0:00:34]} Kf8 {[%emt 0:02:30]} 38. Rb5 {[%emt 0:00:55]} Ke8 {[%emt 0:00:30]} 39. Rd3 {[%emt 0:00:59]} Kd8 {[%emt 0:02:30]} 40. Rf3 {[%emt 0:00:00]} f5 {[%emt 0:00:30]} 41. Rfb3 {[%emt 0:10:06]} Ra6 {[%emt 0:07:30]} 42. Kf3 {[%emt 0:02:30]} Kc7 {[%emt 0:04:30]} 43. Ke3 {[%emt 0:00:58]} g5 {[%emt 0:02:30]} 1/2-1/2

[Event "22nd ECCC Women 2017"]
[Site "Antalya"]
[Date "2017.10.15"]
[Round "7"]
[White "Neuhauser, Salome"]
[Black "Stetsko, Lanita"]
[Result "0-1"]
[ECO "C54"]
[WhiteElo "2140"]
[BlackElo "2254"]
[Annotator "ChessBase"]
[PlyCount "72"]
[EventType "team-tourn"]
[EventCountry "TUR"]
[SourceTitle "playchess.com"]
[Source "ChessBase"]
[SourceQuality "1"]
[WhiteTeam "Mulhouse Philidor"]
[BlackTeam "Bossa Nova"]
[TimeControl "40/5400+30:1800+30"]

1. e4 {[%emt 0:00:30]} e5 {[%emt 0:01:00]} 2. Nf3 {[%emt 0:00:00]} Nc6 {[%emt 0:00:30]} 3. Bc4 {[%emt 0:00:00]} Bc5 {[%emt 0:00:00]} 4. c3 {[%emt 0:00:00]} Nf6 {[%emt 0:00:00]} 5. d4 {[%emt 0:00:00]} exd4 {[%emt 0:01:30]} 6. e5 {[%emt 0:00:30]} d5 {[%emt 0:15:30]} 7. Be2 {[%emt 0:00:00]} Ne4 {[%emt 0:01:30]} 8. cxd4 {[%emt 0:00:00]} Bb6 {[%emt 0:06:30]} 9. Nc3 {[%emt 0:02:30]} Bf5 {[%emt 0:18:30]} 10. O-O {[%emt 0:01:30]} O-O {[%emt 0:00:30]} 11. Na4 {[%emt 0:10:30]} f6 {[%emt 0:08:30]} 12. Be3 {[%emt 0:04:30]} Qe7 {[%emt 0:07:30]} 13. exf6 {[%emt 0:04:30]} Rxf6 {[%emt 0:00:30]} 14. Rc1 {[%emt 0:06:30]} Rg6 {[%emt 0:02:30]} 15. Kh1 {[%emt 0:09:30]} Re8 {[%emt 0:02:30]} 16. Nxb6 {[%emt 0:06:30]} axb6 {[%emt 0:00:30]} 17. Qb3 {[%emt 0:05:30]} Rd8 {[%emt 0:03:30]} 18. Bb5 {[%emt 0:19:30]} Na5 {[%emt 0:04:30]} 19. Qa4 {[%emt 0:02:30]} c6 {[%emt 0:01:30]} 20. Ne5 {[%emt 0:04:30]} cxb5 {[%emt 0:02:30]} 21. Nxg6 {[%emt 0:00:30]} Bxg6 {[%emt 0:01:30]} 22. Qxb5 {[%emt 0:00:30]} Nc4 {[%emt 0:00:30]} 23. Bf4 {[%emt 0:05:14]} Be8 {[%emt 0:00:30]} 24. Qb3 {[%emt 0:04:57]} Ned2 {[%emt 0:00:30]} 25. Bxd2 {[%emt 0:08:41]} Nxd2 {[%emt 0:00:30]} 26. Qxb6 {[%emt 0:00:00]} Nxf1 {[%emt 0:00:30]} 27. Rxf1 {[%emt 0:00:00]} Bg6 {[%emt 0:00:30]} 28. Rc1 {[%emt 0:00:39]} Re8 {[%emt 0:01:04]} 29. h3 {[%emt 0:00:38]} Qg5 {[%emt 0:00:36]} 30. Qc7 {[%emt 0:01:54]} Qd2 {[%emt 0:00:38]} 31. Qc5 {[%emt 0:01:34]} Qxf2 {[%emt 0:02:20]} 32. Qxd5+ {[%emt 0:00:19]} Kh8 {[%emt 0:00:00]} 33. Qxb7 {[%emt 0:00:49]} Qxd4 {[%emt 0:02:10]} 34. b4 {[%emt 0:01:02]} Be4 {[%emt 0:03:40]} 35. Rc8 {[%emt 0:00:51]} Qa1+ {[%emt 0:00:14]} 36. Kh2 {[%emt 0:00:05]} Qe5+ {[%emt 0:00:04]} 0-1

[Event "22nd ECCC Women 2017"]
[Site "Antalya"]
[Date "2017.10.14"]
[Round "7"]
[White "Arda, Cagil Irmak"]
[Black "Sade, Defne"]
[Result "1/2-1/2"]
[ECO "C54"]
[WhiteElo "2040"]
[BlackElo "1951"]
[Annotator "NA"]
[PlyCount "69"]
[EventType "team-tourn"]
[EventCountry "TUR"]
[SourceTitle "playchess.com"]
[Source "ChessBase"]
[SourceQuality "1"]
[WhiteTeam "Anatolia"]
[BlackTeam "Aegean"]
[TimeControl "40/5400+30:1800+30"]

1. e4 {[%emt 0:00:30]} e5 {[%emt 0:01:00]} 2. Nf3 {[%emt 0:00:30]} Nc6 {[%emt 0:00:30]} 3. Bc4 {[%emt 0:00:00]} Bc5 {[%emt 0:00:00]} 4. d3 {[%emt 0:00:00]} Nf6 {[%emt 0:00:00]} 5. O-O {[%emt 0:00:30]} d6 {[%emt 0:00:30]} 6. c3 {[%emt 0:00:30]} a6 {[%emt 0:00:30]} 7. a4 {[%emt 0:00:00]} Ba7 {[%emt 0:00:00]} 8. h3 {[%emt 0:00:00]} h6 {[%emt 0:00:00]} 9. Re1 {[%emt 0:00:30]} O-O {[%emt 0:00:30]} 10. b4 {[%emt 0:00:30]} Be6 {[%emt 0:00:30]} 11. Bxe6 {[%emt 0:00:30]} fxe6 {[%emt 0:00:30]} 12. Nbd2 {[%emt 0:00:00]} Nh5 {[%emt 0:00:30]} 13. Nf1 {[%emt 0:01:00]} Qf6 {[%emt 0:03:30]} 14. Be3 {[%emt 0:05:30]} Ne7 {[%emt 0:03:30]} 15. Ra2 {[%emt 0:02:30]} Ng6 {[%emt 0:02:30]} 16. Bxa7 {[%emt 0:13:30]} Rxa7 {[%emt 0:00:00]} 17. Re3 {[%emt 0:00:30]} Nhf4 {[%emt 0:08:00]} 18. Kh2 {[%emt 0:03:30]} d5 {[%emt 0:03:30]} 19. g3 {[%emt 0:09:30]} d4 {[%emt 0:09:30]} 20. cxd4 {[%emt 0:00:30]} exd4 {[%emt 0:00:30]} 21. e5 {[%emt 0:00:30]} Qf5 {[%emt 0:05:30]} 22. g4 {[%emt 0:00:30]} Qf7 {[%emt 0:01:30]} 23. Nxd4 {[%emt 0:11:30]} Qd7 {[%emt 0:02:30]} 24. Re4 {[%emt 0:05:30]} Nxe5 {[%emt 0:03:30]} 25. Qb3 {[%emt 0:04:30]} Qd6 {[%emt 0:10:30]} 26. Ng3 {[%emt 0:08:30]} Kh8 {[%emt 0:18:30]} 27. Rc2 {[%emt 0:12:30]} Raa8 {[%emt 0:15:36]} 28. Qc3 {[%emt 0:05:07]} Nfxd3 {[%emt 0:00:41]} 29. Nxe6 {[%emt 0:01:57]} Qxe6 {[%emt 0:06:25]} 30. Qxd3 {[%emt 0:00:30]} Nxd3 {[%emt 0:00:00]} 31. Rxe6 {[%emt 0:00:11]} Nxb4 {[%emt 0:00:00]} 32. Rxc7 {[%emt 0:00:23]} Rxf2+ {[%emt 0:00:42]} 33. Kg1 {[%emt 0:00:06]} Ra2 {[%emt 0:03:41]} 34. Rxb7 {[%emt 0:00:52]} Nd5 {[%emt 0:00:20]} 35. Re4 {[%emt 0:09:57]} 1/2-1/2

[Event "22nd ECCC Women 2017"]
[Site "Antalya"]
[Date "2017.10.14"]
[Round "7"]
[White "Ozbay, Ece"]
[Black "Balajayeva, Khanim"]
[Result "0-1"]
[ECO "C60"]
[WhiteElo "1998"]
[BlackElo "2319"]
[Annotator "NA"]
[PlyCount "72"]
[EventType "team-tourn"]
[EventCountry "TUR"]
[SourceTitle "playchess.com"]
[Source "ChessBase"]
[SourceQuality "1"]
[WhiteTeam "Marmara"]
[BlackTeam "Odlar Yurdu"]
[TimeControl "40/5400+30:1800+30"]

1. e4 {[%emt 0:00:30]} e5 {[%emt 0:01:00]} 2. Nf3 {[%emt 0:00:30]} Nc6 {[%emt 0:00:00]} 3. Bb5 {[%emt 0:00:00]} Nge7 {[%emt 0:00:00]} 4. O-O {[%emt 0:02:00]} g6 {[%emt 0:00:00]} 5. c3 {[%emt 0:00:00]} a6 {[%emt 0:00:00]} 6. Ba4 {[%emt 0:03:00]} Bg7 {[%emt 0:00:30]} 7. d4 {[%emt 0:03:30]} exd4 {[%emt 0:00:00]} 8. cxd4 {[%emt 0:00:30]} b5 {[%emt 0:00:00]} 9. Bb3 {[%emt 0:07:30]} O-O {[%emt 0:00:30]} 10. a3 {[%emt 0:01:30]} d6 {[%emt 0:05:30]} 11. h3 {[%emt 0:00:30]} Bb7 {[%emt 0:02:30]} 12. Nc3 {[%emt 0:00:30]} Na5 {[%emt 0:00:30]} 13. Ba2 {[%emt 0:05:30]} c5 {[%emt 0:04:30]} 14. dxc5 {[%emt 0:10:30]} dxc5 {[%emt 0:00:30]} 15. Qxd8 {[%emt 0:00:30]} Rfxd8 16. Bg5 {[%emt 0:00:30]} Re8 {[%emt 0:13:00]} 17. Rfd1 {[%emt 0:05:30]} h6 {[%emt 0:12:30]} 18. Be3 {[%emt 0:08:30]} b4 {[%emt 0:07:30]} 19. axb4 {[%emt 0:10:30]} cxb4 {[%emt 0:00:30]} 20. Na4 {[%emt 0:00:30]} Bxe4 {[%emt 0:04:30]} 21. Nb6 {[%emt 0:04:30]} Rad8 {[%emt 0:09:30]} 22. Rxd8 {[%emt 0:01:30]} Rxd8 {[%emt 0:00:30]} 23. Bxf7+ {[%emt 0:00:00]} Kxf7 {[%emt 0:00:00]} 24. Rxa5 {[%emt 0:00:00]} Bxb2 {[%emt 0:03:00]} 25. Nc4 {[%emt 0:02:30]} Bxf3 {[%emt 0:06:30]} 26. Nxb2 {[%emt 0:04:30]} Be2 {[%emt 0:00:30]} 27. Bxh6 {[%emt 0:05:30]} Rc8 {[%emt 0:03:30]} 28. Ra4 {[%emt 0:07:11]} Nd5 {[%emt 0:00:30]} 29. Ra5 {[%emt 0:00:38]} Bb5 {[%emt 0:02:30]} 30. Ra1 {[%emt 0:01:18]} Rc2 {[%emt 0:01:30]} 31. Nd1 {[%emt 0:00:29]} b3 {[%emt 0:04:30]} 32. Rc1 {[%emt 0:00:28]} a5 {[%emt 0:01:18]} 33. Rb1 {[%emt 0:03:52]} a4 {[%emt 0:00:34]} 34. Bc1 {[%emt 0:01:02]} Be2 {[%emt 0:01:42]} 35. Ne3 {[%emt 0:03:50]} Rxc1+ {[%emt 0:03:39]} 36. Rxc1 {[%emt 0:00:30]} Nxe3 {[%emt 0:00:02]} 0-1